Cogmind - Beta 15 @@@ ROGUE MODE // 2025.06.25 @ 03:14:53 Player: morimori Result: Destroyed by S-10 Pest with Light Assault Rifle Performance ------------- Evolutions (0) 0 Regions Visited (1) 200 Robots Destroyed (25) 125 Value Destroyed (403) 403 Prototype IDs (2) 40 Alien Tech Used (0) 0 Bonus (0) 0 TOTAL SCORE: 768 Bonus ------- None Cogmind --------- Core Integrity 0/250 Matter 238/300 Energy 217/250 System Corruption 2% Temperature Cool (0) Movement Rolling (140) Ox4 Location -10/Materials Parts ------- > --- POWER (1) -------- Ion Engine > --- PROPULSION (2) --- Wheel Wheel > --- UTILITY (2) ------ Heat Sink Huge Storage Unit > --- WEAPON (2) ------- Assault Rifle Light Assault Rifle > --- INVENTORY (25) --- Light Ion Engine Hover Unit Hover Unit Hover Unit Hover Unit Hover Unit Large Storage Unit Structural Scanner Seismic Detector Seismic Detector Hacking Suite Small Laser Light Assault Rifle Light Assault Rifle Peak State ------------ > --- POWER ------------ Light Ion Engine > --- PROPULSION ------- Wheel Wheel > --- UTILITY ---------- Huge Storage Unit Seismic Detector > --- WEAPON ----------- Light Assault Rifle Light Assault Rifle > --- INVENTORY -------- Ion Engine Light Ion Engine Wheel Compact Wheel Hover Unit Hover Unit Hover Unit Hover Unit Hover Unit Heat Sink Heat Sink Large Storage Unit Structural Scanner Seismic Detector Hacking Suite Assault Rifle Light Assault Rifle Light Assault Rifle [Rating: 9] Favorites ----------- Power Light Ion Engine Engine Light Ion Engine Propulsion Wheel Wheel Wheel Utility Seismic Detector Device Seismic Detector Storage Medium Storage Unit Weapon Light Assault Rifle Ballistic Gun Light Assault Rifle Build | -11 -10 ------- Run | Yrd Mat Slots Evolved . | . . Power . | . . Propulsion . | . . Utility . | . . Weapon . | . . Parts Attached 23 | 7 16 Power 4 | 1 3 Engine 4 | 1 3 Core . | . . Reactor . | . . Propulsion 6 | 2 4 Treads . | . . Leg . | . . Wheel 6 | 2 4 Hover . | . . Flight . | . . Utility 9 | 2 7 Device 4 | 1 3 Storage 5 | 1 4 Processor . | . . Hackware . | . . Protection . | . . Artifact . | . . Weapon 4 | 2 2 Energy Gun . | . . Energy Cannon . | . . Ballistic Gun 4 | 2 2 Ballistic Cannon . | . . Launcher . | . . Special Weapon . | . . Impact Weapon . | . . Slashing Weapon . | . . Piercing Weapon . | . . Special Melee Weapon . | . . Unidentified Prototypes . | . . Parts Lost 5 | . 5 Power 1 | . 1 Propulsion 2 | . 2 Utility 1 | . 1 Weapon 1 | . 1 Highest Loss Streak 2 | . 2 To Critical Strikes . | . . Average Backups 11 | 2 11 Power 1 | . 2 Propulsion 5 | . 5 Utility 2 | . 2 Weapon 1 | . 2 Tool/Special . | . . Unused Backups 14 | . 14 Power 1 | . 1 Propulsion 6 | . 6 Utility 4 | . 4 Weapon 3 | . 3 Tool/Special . | . . Average Slot Usage (%) 98 | . 98 Engine 13 | . 13 Wheel 28 | . 28 Device 13 | . 13 Storage 14 | . 14 Ballistic Gun 28 | . 28 Peak Build Rating 9 | 7 9 Average Rating 7 | 5 7 On Entrance 3 | . 7 Naked Turns . | . . Heaviest Build 86 | 12 86 Greatest Support 26 | 20 26 Greatest Overweight (x) 4 | 3 4 Average Overweight (x) . | . . Largest Inventory Capacity 25 | 8 25 Average Capacity 15 | 7 15 Most Carried 19 | 6 19 Average Carried 11 | 2 11 Final Capacity 25 | 8 25 Final Carried 14 | 6 14 Class Distribution -------------------- 61% | Scavenger-Mutant 38% | Mutant Dominant Class ---------------- Scavenger-Mutant | -10/Materials Resources | -11 -10 ----------- Run | Yrd Mat Matter Collected 645 | 286 359 Remotely . | . . Salvage Created 701 | 114 587 Parts 47 | 6 41 Haulers Intercepted 1 | . 1 Recyclers Shooed 1 | . 1 Parts Field Recycled . | . . Retrieved Matter . | . . Parts Self-Destructed . | . . Prevented . | . . Kills | -11 -10 ------- Run | Yrd Mat Combat Hostiles Destroyed 16 | . 16 Guns 16 | . 16 Classes Destroyed 9 | 2 7 Worker 2 | . 2 Tunneler 1 | 1 . Hauler 1 | . 1 Recycler 1 | 1 . Operator 1 | . 1 Watcher 3 | . 3 Swarmer 10 | . 10 Grunt 3 | . 3 Subdweller 3 | . 3 Best Kill Streak 5 | 2 5 Combat Bots Only 5 | . 5 Max Kills in Single Turn 1 | 1 1 Gunslinging . | . . Exploded . | . . Melee . | . . Uniques/NPCs Destroyed . | . . Combat | -11 -10 -------- Run | Yrd Mat Hostile Shots Fired 94 | . 94 Missed 21 | . 21 Hits 73 | . 73 Projectile 73 | . 73 Damage Taken 811 | . 811 Core 250 | . 250 Absorbed by Shields . | . . Core Remaining (%) 100 | 100 . Volleys Fired 89 | 4 85 Largest 2 | 2 2 Hottest 40 | 40 40 Shots Fired 178 | 8 170 Gun 178 | 8 170 Cannon . | . . Launcher . | . . Special . | . . Kinetic 178 | 8 170 Thermal . | . . Explosive . | . . Electromagnetic . | . . Robot Hit Streak 15 | 2 15 Robot Miss Streak 9 | 1 9 Penetration Max . | . . Secondary Targets 4 | . 4 Max Gunslinging Chain 1 | . 1 Shots Hit Robots 103 | 5 98 Core Hits 46 | 3 43 Critical Kills . | . . Critical Parts Destroyed . | . . Critical Strikes . | . . Melee Attacks . | . . Impact . | . . Slashing . | . . Piercing . | . . Sneak Attacks . | . . Combat Hostiles . | . . Follow-up Attacks . | . . Damage Inflicted 974 | 55 919 Guns 960 | 55 905 Cannons . | . . Explosions . | . . Melee . | . . Ramming 14 | . 14 Kinetic 960 | 55 905 Thermal . | . . Explosive . | . . Electromagnetic . | . . Impact . | . . Slashing . | . . Piercing . | . . Highest Corruption 2 | . 2 Average Corruption 1 | . 1 Corruption Purged . | . . Corruption Blocked . | . . Effects 4 | . 4 Matter Fused 2 | . 2 Parts Rejected 1 | . 1 Data Loss (major) 1 | . 1 Overload Shots . | . . Overflow Damage . | . . Projectiles . | . . Explosions . | . . Melee . | . . Knockbacks . | . . Impact . | . . Kinetic . | . . Secondary . | . . Self-Inflicted Damage 7 | . 7 Shots . | . . Rammed 1 | . 1 Targets Rammed 1 | . 1 Kicked . | . . Crushed . | . . Highest Temperature 6 | . 6 Average Temperature 6 | . 6 Received Heat Transfer 54 | . 54 Siege Activations . | . . Martial Activations . | . . Shielding Activations . | . . Robots Disrupted . | . . Combat Hostiles . | . . Robots Corrupted . | . . Combat Hostiles . | . . Parts Fried . | . . Impact Corruptions . | . . Robots Melted . | . . Combat Hostiles . | . . Parts Melted . | . . Heat Transferred . | . . Parts Sabotaged . | . . Parts Stolen . | . . Parts Stripped . | . . Power Chain Reactions . | . . Alert | -11 -10 ------- Run | Yrd Mat Maximum Alert Level . | . . Low Security (%) 100 | 100 100 Level 1 . | . . Level 2 . | . . Level 3 . | . . Level 4 . | . . Level 5 . | . . High Security . | . . Max Security . | . . Peak Influence 144 | 5 144 Initial . | . . Average 68 | 1 73 Influence Increases 436 | 10 426 Destroy 0b10 Robot/C 260 | . 260 Destroy 0b10 Robot/NC 45 | 10 35 Destroy Leader 58 | . 58 Successful Hack 28 | . 28 Partial Spotted 15 | . 15 Lose Combat Pursuer 30 | . 30 Influence Decreases 378 | 10 368 Time Decay 328 | 10 318 Lost Part 50 | . 50 Squads Dispatched 2 | . 2 Investigation . | . . Extermination . | . . Reinforcement 2 | . 2 Assault . | . . Garrison . | . . Intercept . | . . Searches Triggered . | . . Construction Impeded . | . . Haulers Reinforced . | . . Active Scanning Responses . | . . Cargo Convoy Interrupts . | . . Stealth | -11 -10 --------- Run | Yrd Mat Distress Signals 4 | . 4 Communications Jammed . | . . Distress Signals . | . . Times Spotted 28 | . 28 Peak Tracking Total 5 | . 5 Tactical Retreats 1 | . 1 Traps | -11 -10 ------- Run | Yrd Mat Traps Triggered 2 | . 2 Indirectly . | . . Trap Hack Attempts . | . . Triggered . | . . Disarmed . | . . Reprogrammed . | . . Reused . | . . Traps Extracted . | . . Installed . | . . Triggered . | . . Machines | -11 -10 ---------- Run | Yrd Mat Machines Disabled . | . . Max in Single Turn . | . . Machines Repaired . | . . Machines Dismantled . | . . Machines Sabotaged . | . . Overloaded Fab Kills . | . . Hacking | -11 -10 --------- Run | Yrd Mat Machines Accessed 5 | . 5 Terminals 5 | . 5 Fabricators . | . . Repair Stations . | . . Recycling Units . | . . Scanalyzers . | . . Garrison Access . | . . Total Hacks 20 | . 20 Successful 9 | . 9 Failed 11 | . 11 Catastrophic . | . . Database Lockouts . | . . Manual 16 | . 16 Terminals 20 | . 20 Fabricators . | . . Repair Stations . | . . Recycling Units . | . . Scanalyzers . | . . Garrison Access . | . . Terminal Hacks 4 | . 4 Part Schematic 2 | . 2 Prototype ID Bank 1 | . 1 Terminal Index 1 | . 1 Fabricator Hacks . | . . Repair Station Hacks . | . . Recycling Unit Hacks . | . . Scanalyzer . | . . Garrison Access Hacks . | . . Unauthorized Hacks 5 | . 5 Terminals 5 | . 5 Assimilate 2 | . 2 Botnet 2 | . 2 Operators 1 | . 1 Fabricators . | . . Repair Stations . | . . Recycling Units . | . . Scanalyzers . | . . Garrison Access . | . . Data Cores Recovered . | . . Used . | . . Hacking Detections 5 | . 5 Full Trace Events . | . . Feedback Events . | . . Feedback Blocked . | . . Robot Schematics Acquired . | . . Robots Built . | . . Authchips . | . . Time . | . . Total Robot Build Rating . | . . Part Schematics Acquired 2 | . 2 Parts Built . | . . Authchips . | . . Time . | . . Total Part Build Rating . | . . Parts Repaired . | . . Time . | . . Parts Recycled . | . . Recycled Matter . | . . Retrieved Matter . | . . Retrieved Components . | . . Parts Scanalyzed . | . . Part Schematics Acquired . | . . Parts Damaged . | . . Bothacking | -11 -10 ------------ Run | Yrd Mat Used RIF Installer . | . . Robots Hacked . | . . Non-combat . | . . Combat . | . . Robot Hacks Applied . | . . Relay Couplers Released . | . . Fabnet Peak Effective % . | . . Robots Rewired . | . . Allies Hacked . | . . Hacks Repelled . | . . Allies | -11 -10 -------- Run | Yrd Mat Total Allies . | . . Largest Group . | . . Highest-Rated Group . | . . Highest-Rated Ally . | . . Total Orders . | . . Ally Attacks . | . . Total Damage . | . . Kills . | . . Allies Corrupted . | . . Allies Melted . | . . Intel | -11 -10 ------- Run | Yrd Mat Active Infowar (turns) 773 | 18 755 Seismic 773 | 18 755 Robot Analysis Total . | . . Derelict Logs Recovered . | . . Drone Launches . | . . Drone Recoveries . | . . Exploration | -11 -10 ------------- Run | Yrd Mat Turns Passed 936 | 67 869 Spaces Moved 570 | 41 529 Core 8 | 8 . Treads . | . . Legs . | . . Wheels 562 | 33 529 Hover . | . . Flight . | . . Fastest Speed 50 | 50 80 Average Speed 93 | 91 93 Slowest Speed 200 | 200 140 Overloaded Moves . | . . Propulsion Burnouts . | . . Robots Hopped . | . . Potential Cave-ins . | . . Cave-ins Triggered . | . . Exploration Rate (%) 36 | 3 70 Regions Visited 1 Branch Regions . Pre-discovered Areas . | . . Known Exits Taken . | . . Unknown Exits Taken 1 | 1 . Scrap Searched . | . . Spaces Dug . | . . Terrain Destroyed . | . . Melee . | . . Projectile . | . . AOE . | . . Terrain Rammed . | . . Walls Destroyed . | . . Machines Disabled . | . . Actions | -11 -10 --------- Run | Yrd Mat Total 818 | 59 759 Wait 104 | 2 102 Move 569 | 40 529 Hop . | . . Pick Up 19 | 6 13 Fast Attach 8 | 7 1 Attach 5 | . 5 Detach . | . . Swap 12 | . 12 Drop 11 | . 11 Fire 89 | 4 85 Melee . | . . Ram 1 | . 1 Kick . | . . Crush . | . . Escape Stasis . | . . Rewire . | . . Trap . | . . Miscellaneous . | . . Route ------- -11/Scrapyard -10/Materials (discovered 3 exits: [*Mat x2] / [*Min]) History --------- Turn | Location | Event 19 | -11/Scrapyard | Discovered new exit (range 16) 68 | -11/Scrapyard | Entered Materials 409 | -10/Materials | Discovered new exit (range 10) 505 | -10/Materials | Discovered new exit (range 8) 628 | -10/Materials | Build established: Scavenger-Mutant 633 | -10/Materials | Discovered new exit (range 16) 768 | -10/Materials | Derelicts attacked the area 833 | -10/Materials | Core integrity fell below 50% 908 | -10/Materials | Core integrity fell below 20% 937 | -10/Materials | Destroyed by S-10 Pest with Light Assault Rifle Last Messages --------------- 00790_ Acquired 12 matter. 00791_ R-06 Scavenger collects Ion Engine. 00796_ R-06 Scavenger collects Aluminum Leg. 00798_ K-01 Serf cleans the Fusion Modulator. 00801_ R-06 Scavenger collects Aluminum Leg. 00802_ K-01 Serf cleans the Fusion Modulator. 00830_ Wheel destroyed. 00833_ O1-F3T(R) destroyed. 00859_ S6-BYC(R) destroyed. 00863_ Acquired 33 matter. 00866_ R-06 Scavenger collects Battle Cannon. 00870_ Lgt. Ion Engine destroyed. 00878_ Heat Sink destroyed. 00889_ 38-THG(R) destroyed. 00892_ Acquired 7 matter. 00895_ Acquired 4 matter. 00911_ Com. Wheel destroyed. 00919_ S-10 Pest destroyed. 00919_ Switching to secondary target: S-10 Pest. 00927_ Lgt. Assault Rifle destroyed. Map ----- +----------------------------------------------------+ | ?????????????# ! # # #?????????????????? | | ?????????????# # # ! #?????????????????? | | ?????????????# # ########?????????????????? | | ?????#####???######## #????????????????????????? | | ?????#"""#???# ??# #????????????????????????? | | ??####"T"##### "" # #????????????????????????? | | ### ## Y" + ################## #???? | | # """ "# "" # ! #???? | | + """"" T# ??# ! #???? | | # """"" "# ????# #???? | | # """"" ######### """ """ #???? | | # """ ## # """"" """"???????? | | + ## # """"" """????????? | | # ## + """"" """????????? | | ############ # " " """???????? | | # ## # %* ?????? | | # ## # ?????? | | # #####+#########+######/####### ??????? | | # =! #???# ## ! % # ????????????? | | # * * #???# ## ! #? ?????o????? | | ###+#/######## ## """ """ """ #?? ?????????? | | #?# / """*""" """ #??? #?????????? | | #?# !! #["""%""" """ #?????#?????????? | | #?# * # [& & #???????????????? | | ### ####### |#######+#######???????????????? | | #?????# =%# ] @%*#????????????????????? | | ####+####### # s #????????????????????? | | ## # # #????????????????????? | | ## # + #????????????????????? | | ## ] # # #????????????????????? | | ## # # #????????????????????? | | ## #^ # #????????????????????? | | ! ##/ # ^# #????????????????????? | | ## + # #????????????????????? | | ## # ###+######?????????????o??????? | | +## ############ ### ############??????????????? | | ## #??????????# + ! #??????????????? | | ## #??????????# # !! %#??????????????? | | ## #??????????# + !!! #??????????????? | | ## ######?????# # #??????????????? | | "## + #?????# =! ###+#######??????????????? | | T## # #?????# !%! #???????????????????? | | "## # #?????# !!! #???????????????????? | | ## # #?????# % #???????????????????? | | ### # #???#####+## ### ##???????????????????? | | ### # #???# ! * # #?? ???????????????????? | | # #???# """ # #???# ?????????????????? | | # #???#! """ # #????? ?????????????????? | | + #???# """ # #????????????????????????? | | #+########???# # #????????????????????????? | +----------------------------------------------------+ Best States ------------- Heat Dissipation 35 Energy Generation 10 Energy Capacity 250 Matter Stores 300 Matter Capacity 300 Sight Range 16 Terrain Scan Density 10 Evasion (%) 44 Item Schematics ----------------- Hcp. Storage Unit | -10/Materials | Hacked Huge Storage Unit | -10/Materials | Hacked Robot Schematics ------------------ None Fabricated ------------ Nothing Repaired ---------- Nothing Alien Tech Used ----------------- None Achievements -------------- None Challenges ------------ None Game ------ Seed WardroneFieldthrustSpoofer Manual? 0 Play Time 00:12:52 Cumulative 443.0 hours Start 2025.06.25 @ 00:44:21 End 2025.06.25 @ 03:14:53 Sessions 1 Manual Loads 0 Difficulty Rogue Special Mode None Game No. 216 Rogue 216 Adventurer 0 Explorer 0 Win Type - Total 5 Types 5/0/0/0/0/0/0/0/0/0 Lore% 64 Gallery% 69 Achievement% 63 Wizard Run 0 Options --------- Layout 0 ASCII 0 Keyboard 1 Movement Vi Keybinds 0 Fullscreen 2 Font 18/SmallcapsGlow Map View 76x50 Zoom Use 0% Tactical HUD 1 Map Filters NONE Filters NONE Steam 1 RUN: 87a0a45c-5dde-432c-b49c-533dc2f6b3a6